[Event "8th RTU Open 2018"]
[Site "Riga"]
[Date "2018.08.10"]
[Round "7"]
[White "Petrosyan, Manuel"]
[Black "Sinz, Bernhard"]
[Result "1-0"]
[ECO "D44"]
[WhiteElo "2567"]
[BlackElo "2377"]
[Annotator "ChessBase"]
[PlyCount "74"]
[EventDate "2018.08.06"]
[EventType "swiss"]
[EventCountry "LAT"]
[SourceTitle "playchess.com"]
[Source "ChessBase"]
[SourceQuality "1"]
[TimeControl "5400+30"]

1. d4 {[%emt 0:00:00]} d5 {[%emt 0:00:00]} 2. c4 {[%emt 0:00:00]} e6 {[%emt 0:00:00]} 3. Nc3 {[%emt 0:00:11]} c6 {[%emt 0:00:02]} 4. Nf3 {[%emt 0:00:05]} Nf6 {[%emt 0:00:23]} 5. Bg5 {[%emt 0:00:40]} dxc4 {[%emt 0:00:18]} 6. e4 {[%emt 0:01:24]} b5 {[%emt 0:00:13]} 7. e5 {[%emt 0:00:14]} h6 {[%emt 0:00:16]} 8. Bh4 {[%emt 0:00:04]} g5 {[%emt 0:00:11]} 9. Nxg5 {[%emt 0:00:15]} hxg5 {[%emt 0:00:16]} 10. Bxg5 {[%emt 0:00:03]} Nbd7 {[%emt 0:00:16]} 11. exf6 {[%emt 0:00:12]} Bb7 {[%emt 0:00:35]} 12. g3 {[%emt 0:00:30]} Qb6 {[%emt 0:00:17]} 13. Bg2 {[%emt 0:00:11]} O-O-O {[%emt 0:00:15]} 14. O-O {[%emt 0:01:31]} c5 {[%emt 0:00:13]} 15. d5 {[%emt 0:00:32]} b4 {[%emt 0:00:16]} 16. Rb1 {[%emt 0:04:48]} Qa6 {[%emt 0:00:34]} 17. dxe6 {[%emt 0:00:17]} Bxg2 {[%emt 0:00:34]} 18. e7 {[%emt 0:00:27]} Bxf1 {[%emt 0:03:12]} 19. Kxf1 {[%emt 0:00:26]} Bxe7 {[%emt 0:04:26]} 20. fxe7 {[%emt 0:00:06]} Rdg8 {[%emt 0:01:00]} 21. Ne4 {[%emt 0:00:47]} Rxg5 {[%emt 0:10:55]} 22. Nxg5 {[%emt 0:00:22]} Qg6 {[%emt 0:04:42]} 23. Nf3 {[%emt 0:11:22]} Re8 {[%emt 0:05:24]} 24. Rc1 {[%emt 0:03:51]} Qe4 {[%emt 0:15:46]} 25. Qe2 {[%emt 0:10:27]} Qxe2+ {[%emt 0:01:21]} 26. Kxe2 {[%emt 0:00:05]} Rxe7+ {[%emt 0:00:26]} 27. Kf1 {[%emt 0:00:27]} Nb6 {[%emt 0:18:17]} 28. Nd2 {[%emt 0:01:57]} c3 {[%emt 0:07:10]} 29. bxc3 {[%emt 0:00:59]} Kb7 {[%emt 0:01:08]} 30. Nb3 {[%emt 0:03:39]} Re5 {[%emt 0:04:26]} 31. cxb4 {[%emt 0:04:21]} cxb4 {[%emt 0:02:08]} 32. Nc5+ {[%emt 0:00:16]} Ka8 {[%emt 0:00:46]} 33. Na6 {[%emt 0:09:05]} Re4 {[%emt 0:01:53]} 34. Rb1 {[%emt 0:00:24]} Nd5 {[%emt 0:01:55]} 35. a3 {[%emt 0:02:21]} Re6 {[%emt 0:03:51]} 36. Nxb4 {[%emt 0:00:14]} Rb6 {[%emt 0:00:11]} 37. Rb2 {[%emt 0:00:42]} Kb7 1-0

[Event "8th RTU Open 2018"]
[Site "Riga"]
[Date "2018.08.10"]
[Round "7"]
[White "Repka, Christopher"]
[Black "Carlsson, Pontus"]
[Result "1/2-1/2"]
[ECO "E59"]
[WhiteElo "2528"]
[BlackElo "2442"]
[Annotator "ChessBase"]
[PlyCount "47"]
[EventDate "2018.08.06"]
[EventType "swiss"]
[EventCountry "LAT"]
[SourceTitle "playchess.com"]
[Source "ChessBase"]
[SourceQuality "1"]
[TimeControl "5400+30"]

1. d4 {[%emt 0:00:00]} e6 {[%emt 0:07:38]} 2. c4 {[%emt 0:00:00]} Nf6 {[%emt 0:00:29]} 3. Nc3 {[%emt 0:00:35]} Bb4 {[%emt 0:00:05]} 4. e3 {[%emt 0:00:35]} O-O {[%emt 0:02:22]} 5. Bd3 {[%emt 0:00:19]} d5 {[%emt 0:00:25]} 6. Nf3 {[%emt 0:00:26]} dxc4 {[%emt 0:04:08]} 7. Bxc4 {[%emt 0:00:06]} c5 {[%emt 0:00:03]} 8. O-O {[%emt 0:01:20]} Nc6 {[%emt 0:00:05]} 9. a3 {[%emt 0:02:45]} Bxc3 {[%emt 0:00:06]} 10. bxc3 {[%emt 0:00:03]} Qc7 {[%emt 0:00:09]} 11. Qe2 {[%emt 0:06:39]} e5 {[%emt 0:00:56]} 12. d5 {[%emt 0:03:22]} e4 {[%emt 0:00:20]} 13. Nd2 {[%emt 0:03:17]} Ne5 {[%emt 0:28:52]} 14. Ba2 {[%emt 0:01:04]} Bf5 {[%emt 0:03:27]} 15. h3 {[%emt 0:08:27]} Bg6 {[%emt 0:17:42]} 16. c4 {[%emt 0:00:52]} Rfe8 {[%emt 0:10:15]} 17. Bb2 {[%emt 0:01:16]} Bh5 {[%emt 0:00:43]} 18. f3 {[%emt 0:01:20]} exf3 {[%emt 0:08:47]} 19. gxf3 {[%emt 0:00:20]} Ng6 {[%emt 0:08:08]} 20. Rae1 {[%emt 0:07:03]} Rxe3 {[%emt 0:01:14]} 21. Qxe3 {[%emt 0:10:43]} Qg3+ {[%emt 0:00:07]} 22. Kh1 {[%emt 0:00:03]} Qxh3+ {[%emt 0:00:21]} 23. Kg1 {[%emt 0:00:04]} Qg3+ {[%emt 0:00:17]} 24. Kh1 {[%emt 0:00:03]} 1/2-1/2

[Event "8th RTU Open 2018"]
[Site "Riga"]
[Date "2018.08.10"]
[Round "7"]
[White "Samolins, Vitalijs"]
[Black "Chukavin, Kirill"]
[Result "1/2-1/2"]
[ECO "B24"]
[WhiteElo "2419"]
[BlackElo "2291"]
[Annotator "NA"]
[PlyCount "124"]
[EventDate "2018.08.06"]
[EventType "swiss"]
[EventCountry "LAT"]
[SourceTitle "playchess.com"]
[Source "ChessBase"]
[SourceQuality "1"]
[TimeControl "5400+30"]

1. e4 {[%emt 0:00:21]} c5 {[%emt 0:01:02]} 2. Nc3 {[%emt 0:00:10]} Nc6 {[%emt 0:00:37]} 3. Bb5 {[%emt 0:00:23]} e5 {[%emt 0:11:59]} 4. Bxc6 {[%emt 0:03:54]} bxc6 {[%emt 0:01:42]} 5. d3 {[%emt 0:00:30]} Ne7 {[%emt 0:03:14]} 6. f4 {[%emt 0:09:05]} exf4 {[%emt 0:00:51]} 7. Qf3 {[%emt 0:04:35]} Ng6 {[%emt 0:13:24]} 8. Nge2 {[%emt 0:00:33]} Qh4+ {[%emt 0:06:43]} 9. g3 {[%emt 0:06:52]} fxg3 {[%emt 0:01:24]} 10. hxg3 {[%emt 0:00:07]} Qe7 {[%emt 0:02:10]} 11. Bf4 {[%emt 0:05:58]} d6 {[%emt 0:09:57]} 12. d4 {[%emt 0:07:44]} cxd4 {[%emt 0:03:25]} 13. Nxd4 {[%emt 0:01:15]} Ne5 {[%emt 0:00:47]} 14. Qe2 {[%emt 0:09:52]} a5 {[%emt 0:06:56]} 15. Bxe5 {[%emt 0:04:29]} dxe5 {[%emt 0:03:10]} 16. Nf5 {[%emt 0:09:07]} Qb4 {[%emt 0:03:31]} 17. Qd2 {[%emt 0:03:31]} g6 {[%emt 0:09:32]} 18. O-O-O {[%emt 0:00:54]} Be6 {[%emt 0:04:24]} 19. a3 {[%emt 0:00:30]} Qb8 {[%emt 0:01:47]} 20. Qg5 {[%emt 0:05:55]} gxf5 {[%emt 0:05:16]} 21. exf5 {[%emt 0:00:05]} h5 {[%emt 0:02:00]} 22. Kb1 {[%emt 0:10:12]} Bxa3 {[%emt 0:01:24]} 23. Na4 {[%emt 0:00:01]} Bd5 {[%emt 0:01:26]} 24. Rhe1 {[%emt 0:06:34]} Qd6 {[%emt 0:04:09]} 25. c4 {[%emt 0:00:42]} f6 {[%emt 0:00:59]} 26. Qg6+ {[%emt 0:06:13]} Bf7 {[%emt 0:00:02]} 27. Rxd6 {[%emt 0:00:20]} Bxg6 {[%emt 0:00:03]} 28. Rxf6 {[%emt 0:00:02]} Bf7 {[%emt 0:01:20]} 29. bxa3 {[%emt 0:00:34]} O-O {[%emt 0:00:22]} 30. Rxe5 {[%emt 0:00:50]} Bxc4 {[%emt 0:00:38]} 31. Rg6+ {[%emt 0:02:40]} Kh7 {[%emt 0:00:23]} 32. Rxc6 {[%emt 0:00:22]} Rxf5 {[%emt 0:00:28]} 33. Re7+ {[%emt 0:00:50]} Bf7 {[%emt 0:00:48]} 34. Nc5 {[%emt 0:00:44]} Rb8+ {[%emt 0:00:16]} 35. Kc1 {[%emt 0:00:19]} Rf1+ {[%emt 0:00:27]} 36. Kd2 {[%emt 0:00:11]} Rb2+ {[%emt 0:00:31]} 37. Kc3 {[%emt 0:00:55]} Rg2 {[%emt 0:00:09]} 38. Re3 {[%emt 0:00:33]} Rc1+ {[%emt 0:00:09]} 39. Kd4 {[%emt 0:00:57]} Rd2+ {[%emt 0:01:20]} 40. Ke5 {[%emt 0:00:26]} Rd5+ {[%emt 0:00:22]} 41. Kf6 {[%emt 0:00:05]} Bg6 {[%emt 0:00:39]} 42. Re7+ {[%emt 0:01:03]} Kh6 {[%emt 0:00:01]} 43. Re5 {[%emt 0:00:00]} Rxe5 {[%emt 0:01:08]} 44. Kxe5 {[%emt 0:00:01]} Rc3 {[%emt 0:00:06]} 45. Kf4 {[%emt 0:01:06]} Rxa3 {[%emt 0:00:28]} 46. Ra6 {[%emt 0:00:01]} Ra1 {[%emt 0:00:30]} 47. Ra7 {[%emt 0:01:13]} Rf1+ {[%emt 0:00:45]} 48. Ke3 {[%emt 0:00:01]} Rg1 {[%emt 0:00:28]} 49. Kf4 {[%emt 0:00:16]} Rf1+ {[%emt 0:00:02]} 50. Ke3 {[%emt 0:00:01]} Rg1 {[%emt 0:00:54]} 51. Kf4 {[%emt 0:00:01]} Ra1 {[%emt 0:00:06]} 52. Ra6 {[%emt 0:00:21]} Rf1+ {[%emt 0:00:41]} 53. Ke3 {[%emt 0:00:03]} Kg5 {[%emt 0:00:30]} 54. Rxa5 {[%emt 0:00:25]} Kg4 {[%emt 0:00:02]} 55. Nd7 {[%emt 0:01:44]} Rf3+ {[%emt 0:01:20]} 56. Ke2 {[%emt 0:00:01]} Rxg3 {[%emt 0:00:29]} 57. Ne5+ {[%emt 0:01:18]} Kh4 {[%emt 0:00:10]} 58. Kf2 {[%emt 0:00:49]} Be8 {[%emt 0:00:47]} 59. Ra8 {[%emt 0:00:50]} Rg8 {[%emt 0:00:24]} 60. Rb8 {[%emt 0:00:53]} Rf8+ {[%emt 0:00:48]} 61. Nf3+ {[%emt 0:00:01]} Kg4 {[%emt 0:00:14]} 62. Rb4+ {[%emt 0:00:03]} Rf4 {[%emt 0:00:42]} 1/2-1/2

[Event "8th RTU Open 2018"]
[Site "Riga"]
[Date "2018.08.10"]
[Round "7"]
[White "Lapshun, Yury"]
[Black "Gurvich, Vitaly"]
[Result "1/2-1/2"]
[ECO "B15"]
[WhiteElo "2403"]
[BlackElo "2272"]
[Annotator "NA"]
[PlyCount "247"]
[EventDate "2018.08.06"]
[EventType "swiss"]
[EventCountry "LAT"]
[SourceTitle "playchess.com"]
[Source "ChessBase"]
[SourceQuality "1"]
[TimeControl "5400+30"]

1. e4 {[%emt 0:27:37]} c6 {[%emt 0:00:00]} 2. d4 {[%emt 0:00:31]} d5 {[%emt 0:00:00]} 3. Nd2 {[%emt 0:00:03]} dxe4 {[%emt 0:00:00]} 4. Nxe4 {[%emt 0:00:02]} Nf6 {[%emt 0:00:00]} 5. Ng3 {[%emt 0:00:19]} g6 {[%emt 0:03:24]} 6. Nf3 {[%emt 0:00:52]} Bg7 {[%emt 0:00:07]} 7. Bc4 {[%emt 0:00:23]} O-O {[%emt 0:00:57]} 8. O-O {[%emt 0:00:15]} Bg4 {[%emt 0:03:02]} 9. c3 {[%emt 0:00:21]} Nbd7 {[%emt 0:00:49]} 10. Re1 {[%emt 0:00:30]} e6 {[%emt 0:04:55]} 11. h3 {[%emt 0:03:22]} Bxf3 {[%emt 0:00:04]} 12. Qxf3 {[%emt 0:00:03]} Re8 {[%emt 0:00:24]} 13. Ne4 {[%emt 0:03:27]} Nxe4 {[%emt 0:01:41]} 14. Rxe4 {[%emt 0:00:20]} Nf6 {[%emt 0:05:45]} 15. Re1 {[%emt 0:02:33]} Nd5 {[%emt 0:00:18]} 16. Bd2 {[%emt 0:00:33]} Qd7 {[%emt 0:03:36]} 17. Rad1 {[%emt 0:00:17]} b5 {[%emt 0:07:15]} 18. Bb3 {[%emt 0:00:50]} a5 {[%emt 0:00:26]} 19. Bc1 {[%emt 0:02:41]} a4 {[%emt 0:00:24]} 20. Bc2 {[%emt 0:00:02]} Rac8 {[%emt 0:04:59]} 21. h4 {[%emt 0:01:43]} h5 {[%emt 0:01:53]} 22. g3 {[%emt 0:01:35]} Nf6 {[%emt 0:05:45]} 23. Bg5 {[%emt 0:12:40]} Nd5 {[%emt 0:01:27]} 24. Be4 {[%emt 0:02:38]} Rb8 {[%emt 0:12:10]} 25. Kg2 {[%emt 0:02:59]} Rbc8 {[%emt 0:01:13]} 26. Qd3 {[%emt 0:00:28]} Ra8 {[%emt 0:03:50]} 27. Kg1 {[%emt 0:00:25]} Kh7 {[%emt 0:05:16]} 28. Bf3 {[%emt 0:00:30]} Kg8 {[%emt 0:00:29]} 29. g4 {[%emt 0:01:15]} hxg4 {[%emt 0:00:28]} 30. Bxg4 {[%emt 0:00:02]} Bf6 {[%emt 0:06:12]} 31. Qg3 {[%emt 0:01:32]} Bxg5 {[%emt 0:02:57]} 32. hxg5 {[%emt 0:00:04]} Qc7 {[%emt 0:00:07]} 33. Re5 {[%emt 0:00:28]} Kg7 {[%emt 0:00:38]} 34. Kg2 {[%emt 0:08:08]} Rh8 {[%emt 0:00:15]} 35. Rh1 {[%emt 0:03:16]} Rxh1 {[%emt 0:01:26]} 36. Kxh1 {[%emt 0:00:01]} a3 {[%emt 0:01:43]} 37. b4 {[%emt 0:02:16]} Rh8+ {[%emt 0:07:09]} 38. Kg1 {[%emt 0:00:04]} Qd6 {[%emt 0:00:51]} 39. Be2 {[%emt 0:03:50]} Qe7 {[%emt 0:01:09]} 40. Re4 {[%emt 0:00:50]} Qc7 {[%emt 0:00:14]} 41. Re5 {[%emt 0:00:46]} Qd6 {[%emt 0:00:28]} 42. Bf1 {[%emt 0:00:36]} Qc7 {[%emt 0:01:12]} 43. Bg2 {[%emt 0:01:04]} Qd6 {[%emt 0:00:11]} 44. Be4 {[%emt 0:02:14]} Qc7 {[%emt 0:01:17]} 45. Kf1 {[%emt 0:04:37]} Qb8 {[%emt 0:01:20]} 46. Bg2 {[%emt 0:04:33]} Qd6 {[%emt 0:00:32]} 47. Ke2 {[%emt 0:00:39]} Qb8 {[%emt 0:01:23]} 48. Kd2 {[%emt 0:01:33]} Qd6 {[%emt 0:01:48]} 49. Kc2 {[%emt 0:00:32]} Qb8 {[%emt 0:00:31]} 50. Be4 {[%emt 0:02:05]} Rh5 {[%emt 0:01:46]} 51. Bf3 {[%emt 0:00:49]} Rh8 {[%emt 0:00:23]} 52. Re2 {[%emt 0:01:15]} Qd8 {[%emt 0:03:25]} 53. Re1 {[%emt 0:00:19]} Kg8 {[%emt 0:01:34]} 54. Rh1 {[%emt 0:02:14]} Rxh1 {[%emt 0:00:42]} 55. Bxh1 {[%emt 0:00:02]} Kg7 {[%emt 0:01:20]} 56. Qe5+ {[%emt 0:00:01]} Kg8 {[%emt 0:00:07]} 57. Be4 {[%emt 0:00:19]} Kh7 {[%emt 0:01:12]} 58. Kd2 {[%emt 0:00:32]} Kg8 {[%emt 0:00:26]} 59. Kd3 {[%emt 0:00:39]} Kh7 {[%emt 0:00:11]} 60. Kc2 {[%emt 0:00:05]} Kg8 {[%emt 0:00:45]} 61. Qg3 {[%emt 0:02:08]} Kh7 {[%emt 0:01:09]} 62. Qe5 {[%emt 0:00:53]} Kg8 {[%emt 0:00:15]} 63. Kd2 {[%emt 0:00:02]} Kh7 {[%emt 0:00:08]} 64. Bc2 {[%emt 0:00:10]} Kg8 {[%emt 0:00:24]} 65. Bb3 {[%emt 0:00:02]} Kh7 {[%emt 0:00:37]} 66. Bd1 {[%emt 0:01:16]} Kg8 {[%emt 0:00:13]} 67. Bf3 {[%emt 0:00:04]} Kh7 {[%emt 0:00:25]} 68. Kc2 {[%emt 0:00:14]} Kg8 {[%emt 0:00:07]} 69. Kb3 {[%emt 0:00:26]} Qa8 {[%emt 0:00:19]} 70. Kc2 {[%emt 0:00:01]} Qd8 {[%emt 0:00:06]} 71. Be4 {[%emt 0:00:44]} Kh7 {[%emt 0:00:15]} 72. Bxd5 cxd5 {[%emt 0:00:17]} 73. Qe2 {[%emt 0:01:03]} Qb6 {[%emt 0:00:41]} 74. Kd2 {[%emt 0:00:36]} Kg8 {[%emt 0:00:24]} 75. Kc2 {[%emt 0:00:55]} Kh7 {[%emt 0:00:42]} 76. Qf1 {[%emt 0:01:12]} Kg8 {[%emt 0:00:25]} 77. Kd2 {[%emt 0:00:07]} Qb8 {[%emt 0:00:36]} 78. Kc2 {[%emt 0:00:47]} Qb6 {[%emt 0:00:11]} 79. Qc1 {[%emt 0:00:16]} Qa6 {[%emt 0:00:34]} 80. Kb1 {[%emt 0:00:57]} Qa7 {[%emt 0:00:37]} 81. Kc2 {[%emt 0:00:28]} Qa6 {[%emt 0:00:20]} 82. Kd3 {[%emt 0:00:09]} Qa7 {[%emt 0:00:17]} 83. Kd2 {[%emt 0:00:19]} Qa6 {[%emt 0:00:11]} 84. Ke3 {[%emt 0:00:17]} Qa7 {[%emt 0:00:07]} 85. Kf3 {[%emt 0:00:17]} Qa6 {[%emt 0:00:14]} 86. Ke2 {[%emt 0:00:03]} Qa7 {[%emt 0:00:05]} 87. Qf4 {[%emt 0:00:19]} Qb6 {[%emt 0:01:04]} 88. Qc1 {[%emt 0:00:04]} Qa6 {[%emt 0:00:13]} 89. Kd1 {[%emt 0:00:25]} Qa4+ {[%emt 0:01:48]} 90. Qc2 {[%emt 0:00:05]} Qa6 {[%emt 0:00:05]} 91. Qc1 {[%emt 0:00:17]} Qa4+ {[%emt 0:00:05]} 92. Ke2 {[%emt 0:00:03]} Qa6 {[%emt 0:00:09]} 93. Ke1 {[%emt 0:00:05]} Qa4 {[%emt 0:00:17]} 94. Kd2 {[%emt 0:00:23]} Qa6 {[%emt 0:00:08]} 95. Kd3 {[%emt 0:00:08]} Qa4 {[%emt 0:00:15]} 96. Qe1 {[%emt 0:01:22]} Qa6 {[%emt 0:01:44]} 97. Qc1 {[%emt 0:00:39]} Qa4 {[%emt 0:00:09]} 98. Kd2 {[%emt 0:00:16]} Qa6 {[%emt 0:00:08]} 99. Kc2 {[%emt 0:00:05]} Qa4+ {[%emt 0:00:32]} 100. Kb1 {[%emt 0:00:01]} Qa6 {[%emt 0:00:07]} 101. Qf1 {[%emt 0:00:37]} Qc6 {[%emt 0:00:38]} 102. Kc2 {[%emt 0:00:05]} Qa6 {[%emt 0:00:21]} 103. Qe2 {[%emt 0:00:47]} Qa4+ {[%emt 0:00:08]} 104. Kc1 {[%emt 0:00:06]} Qa6 {[%emt 0:00:05]} 105. Kd2 {[%emt 0:00:12]} Qc6 {[%emt 0:00:23]} 106. Qd3 {[%emt 0:00:03]} Qa6 {[%emt 0:00:09]} 107. Qg3 {[%emt 0:00:15]} Qb6 {[%emt 0:00:52]} 108. Kc2 {[%emt 0:00:23]} Kh7 {[%emt 0:00:18]} 109. Qf4 {[%emt 0:00:38]} Kg8 {[%emt 0:00:15]} 110. Kd2 {[%emt 0:00:48]} Kg7 {[%emt 0:01:04]} 111. Qf6+ {[%emt 0:00:16]} Kg8 {[%emt 0:00:02]} 112. Qe7 {[%emt 0:00:14]} Qb8 {[%emt 0:03:50]} 113. Ke3 {[%emt 0:00:36]} Qc8 {[%emt 0:00:14]} 114. Qc5 {[%emt 0:00:54]} Qb7 {[%emt 0:00:55]} 115. Ke2 {[%emt 0:01:39]} Kg7 {[%emt 0:00:22]} 116. Ke3 {[%emt 0:01:00]} Kg8 {[%emt 0:00:19]} 117. Kd3 {[%emt 0:00:32]} Kg7 {[%emt 0:00:08]} 118. Kc2 {[%emt 0:00:08]} Kg8 {[%emt 0:00:35]} 119. f3 {[%emt 0:01:33]} Kg7 {[%emt 0:00:26]} 120. Qd6 {[%emt 0:00:23]} Qc8 {[%emt 0:00:23]} 121. Qc5 {[%emt 0:02:00]} Qb7 {[%emt 0:00:20]} 122. Kb3 {[%emt 0:00:12]} Qa6 {[%emt 0:00:06]} 123. Kc2 {[%emt 0:00:02]} Qb7 {[%emt 0:00:08]} 124. Kb3 {[%emt 0:01:01]} 1/2-1/2

[Event "8th RTU Open 2018"]
[Site "Riga"]
[Date "2018.08.10"]
[Round "7"]
[White "Miedema, David"]
[Black "Sorensen, Hampus"]
[Result "1-0"]
[ECO "D43"]
[WhiteElo "2397"]
[BlackElo "2267"]
[Annotator "NA"]
[PlyCount "87"]
[EventDate "2018.08.06"]
[EventType "swiss"]
[EventCountry "LAT"]
[SourceTitle "playchess.com"]
[Source "ChessBase"]
[SourceQuality "1"]
[TimeControl "5400+30"]

1. d4 {[%emt 0:05:28]} d5 {[%emt 0:00:00]} 2. c4 {[%emt 0:00:36]} c6 {[%emt 0:00:20]} 3. Nf3 {[%emt 0:00:11]} Nf6 {[%emt 0:01:18]} 4. Nc3 {[%emt 0:00:23]} e6 {[%emt 0:00:22]} 5. g3 {[%emt 0:00:25]} dxc4 {[%emt 0:04:41]} 6. Bg2 {[%emt 0:00:05]} b5 {[%emt 0:02:19]} 7. O-O {[%emt 0:04:27]} Bb7 {[%emt 0:01:54]} 8. a4 {[%emt 0:03:34]} a6 {[%emt 0:03:23]} 9. Ne5 {[%emt 0:02:04]} Qb6 {[%emt 0:03:00]} 10. e4 {[%emt 0:08:08]} Nbd7 {[%emt 0:09:09]} 11. Nxd7 {[%emt 0:05:28]} Nxd7 {[%emt 0:00:49]} 12. e5 {[%emt 0:05:39]} b4 {[%emt 0:20:01]} 13. a5 {[%emt 0:01:07]} Qc7 {[%emt 0:01:18]} 14. Ne4 {[%emt 0:01:40]} c5 {[%emt 0:02:56]} 15. Nd6+ {[%emt 0:04:17]} Bxd6 {[%emt 0:00:19]} 16. exd6 {[%emt 0:00:04]} Qb8 {[%emt 0:01:38]} 17. Qg4 {[%emt 0:04:42]} Bxg2 {[%emt 0:03:23]} 18. Qxg7 {[%emt 0:00:10]} Rf8 {[%emt 0:00:10]} 19. Kxg2 {[%emt 0:00:45]} Qxd6 {[%emt 0:00:34]} 20. dxc5 {[%emt 0:02:22]} Qd5+ {[%emt 0:03:40]} 21. f3 {[%emt 0:00:55]} O-O-O {[%emt 0:03:16]} 22. c6 {[%emt 0:03:02]} Qxc6 {[%emt 0:01:24]} 23. Be3 {[%emt 0:08:14]} Nc5 {[%emt 0:02:55]} 24. Rad1 {[%emt 0:00:05]} Nd3 {[%emt 0:12:23]} 25. Bb6 {[%emt 0:00:14]} Rde8 {[%emt 0:03:23]} 26. b3 {[%emt 0:05:18]} Nf4+ {[%emt 0:02:59]} 27. Kh1 {[%emt 0:02:11]} Nd5 {[%emt 0:00:10]} 28. bxc4 {[%emt 0:00:29]} Nxb6 {[%emt 0:01:15]} 29. axb6 {[%emt 0:00:03]} Rd8 {[%emt 0:03:02]} 30. c5 {[%emt 0:00:36]} a5 {[%emt 0:06:37]} 31. Kg2 {[%emt 0:07:13]} a4 {[%emt 0:01:25]} 32. Qe5 {[%emt 0:01:20]} f6 {[%emt 0:00:57]} 33. Qf4 {[%emt 0:00:03]} b3 {[%emt 0:01:00]} 34. Ra1 {[%emt 0:00:03]} e5 {[%emt 0:00:59]} 35. Qg4+ {[%emt 0:00:42]} Kb7 {[%emt 0:00:29]} 36. Rxa4 {[%emt 0:00:13]} Qxc5 {[%emt 0:00:43]} 37. Qg7+ {[%emt 0:00:21]} Kxb6 {[%emt 0:00:40]} 38. Qa7+ {[%emt 0:00:05]} Kc6 {[%emt 0:00:03]} 39. Ra6+ {[%emt 0:00:05]} Kd5 {[%emt 0:00:18]} 40. Rd1+ {[%emt 0:00:45]} Qd4 {[%emt 0:00:05]} 41. Qb7+ {[%emt 0:00:24]} Kc4 {[%emt 0:00:25]} 42. Qc6+ {[%emt 0:00:39]} Qc5 {[%emt 0:00:19]} 43. Ra4+ {[%emt 0:00:04]} Kc3 {[%emt 0:00:03]} 44. Qxc5+ {[%emt 0:00:02]} 1-0

[Event "8th RTU Open 2018"]
[Site "Riga"]
[Date "2018.08.10"]
[Round "7"]
[White "Akesson, Ralf"]
[Black "Priyanka, Nutakki"]
[Result "1/2-1/2"]
[ECO "A05"]
[WhiteElo "2389"]
[BlackElo "2212"]
[Annotator "NA"]
[PlyCount "57"]
[EventDate "2018.08.06"]
[EventType "swiss"]
[EventCountry "LAT"]
[SourceTitle "playchess.com"]
[Source "ChessBase"]
[SourceQuality "1"]
[TimeControl "5400+30"]

1. Nf3 Nf6 2. c4 b6 3. Nc3 Bb7 4. d4 e6 5. a3 Be7 6. d5 d6 7. e4 e5 8. b4 Nbd7 9. Bd3 O-O 10. O-O a5 11. Be3 g6 12. Nd2 Nh5 13. Nb3 axb4 14. axb4 Rxa1 15. Qxa1 Bg5 16. Qc1 Bxe3 17. Qxe3 f5 18. Ra1 Nf4 19. Bf1 Nf6 20. Nd2 Ng4 21. Qe1 Qg5 22. f3 Ne3 23. Qg3 Qh6 24. Ra7 Nh5 25. Qe1 Rb8 26. Ra2 Rf8 27. Ra7 Rb8 28. Ra2 Rf8 29. Ra7 1/2-1/2

[Event "8th RTU Open 2018"]
[Site "Riga"]
[Date "2018.08.10"]
[Round "7"]
[White "Rostgaard, Tobias Valentin"]
[Black "Bolsakovs, Vadims"]
[Result "1-0"]
[ECO "B13"]
[WhiteElo "2386"]
[BlackElo "2197"]
[Annotator "NA"]
[PlyCount "147"]
[EventDate "2018.08.06"]
[EventType "swiss"]
[EventCountry "LAT"]
[SourceTitle "playchess.com"]
[Source "ChessBase"]
[SourceQuality "1"]
[TimeControl "5400+30"]

1. e4 {[%emt 0:01:40]} c6 {[%emt 0:08:47]} 2. d4 {[%emt 0:00:03]} d5 {[%emt 0:00:05]} 3. exd5 {[%emt 0:00:07]} cxd5 {[%emt 0:00:05]} 4. Bd3 {[%emt 0:00:04]} Nc6 {[%emt 0:00:19]} 5. c3 {[%emt 0:00:07]} Nf6 {[%emt 0:00:26]} 6. Bf4 {[%emt 0:00:08]} g6 {[%emt 0:00:40]} 7. Nd2 {[%emt 0:02:11]} Bf5 {[%emt 0:05:25]} 8. Bxf5 {[%emt 0:03:05]} gxf5 {[%emt 0:00:10]} 9. h4 {[%emt 0:02:41]} Rg8 {[%emt 0:05:40]} 10. Ne2 {[%emt 0:07:16]} e6 {[%emt 0:05:38]} 11. Kf1 {[%emt 0:05:36]} Ne4 {[%emt 0:08:19]} 12. f3 {[%emt 0:01:41]} Nf6 {[%emt 0:01:55]} 13. h5 {[%emt 0:04:30]} Bd6 {[%emt 0:02:27]} 14. Qe1 {[%emt 0:06:11]} Bxf4 {[%emt 0:13:12]} 15. Nxf4 {[%emt 0:00:10]} Qd6 {[%emt 0:04:32]} 16. Qe3 {[%emt 0:07:23]} O-O-O {[%emt 0:02:20]} 17. Re1 {[%emt 0:02:01]} Rg3 {[%emt 0:06:38]} 18. Ne2 {[%emt 0:02:05]} Rg7 {[%emt 0:10:03]} 19. Qh6 {[%emt 0:03:43]} Ne8 {[%emt 0:00:26]} 20. Nb3 {[%emt 0:01:31]} Ne7 {[%emt 0:07:44]} 21. Nc5 {[%emt 0:01:10]} b6 {[%emt 0:03:30]} 22. Nd3 {[%emt 0:00:15]} Ng8 {[%emt 0:00:41]} 23. Qe3 {[%emt 0:01:03]} h6 {[%emt 0:02:03]} 24. Ne5 {[%emt 0:00:24]} Kb7 {[%emt 0:01:41]} 25. a4 {[%emt 0:00:49]} Nef6 {[%emt 0:02:55]} 26. a5 {[%emt 0:01:15]} Nd7 {[%emt 0:01:28]} 27. axb6 {[%emt 0:00:47]} Nxe5 {[%emt 0:01:39]} 28. dxe5 {[%emt 0:00:57]} Qxb6 {[%emt 0:00:01]} 29. Qd2 {[%emt 0:04:17]} Ne7 {[%emt 0:02:10]} 30. Rh4 {[%emt 0:00:27]} Nc6 {[%emt 0:00:04]} 31. Nd4 {[%emt 0:02:48]} Rdg8 {[%emt 0:00:54]} 32. Re2 {[%emt 0:04:58]} Rg3 {[%emt 0:01:32]} 33. Qe3 {[%emt 0:08:17]} Qa6 {[%emt 0:02:03]} 34. Rh2 {[%emt 0:07:58]} Nxd4 {[%emt 0:00:47]} 35. cxd4 {[%emt 0:00:19]} Ka8 {[%emt 0:00:36]} 36. Kf2 {[%emt 0:06:22]} R3g5 {[%emt 0:00:31]} 37. Rc2 {[%emt 0:01:16]} Qa4 {[%emt 0:00:10]} 38. Qc3 {[%emt 0:00:54]} Rb8 {[%emt 0:00:33]} 39. Rh1 {[%emt 0:01:33]} Rgg8 {[%emt 0:00:01]} 40. Rhc1 {[%emt 0:01:05]} Rgc8 {[%emt 0:01:01]} 41. Qd2 {[%emt 0:00:32]} Rxc2 {[%emt 0:00:33]} 42. Rxc2 {[%emt 0:00:07]} Qb4 {[%emt 0:00:43]} 43. Qe3 {[%emt 0:03:35]} Qb3 {[%emt 0:00:25]} 44. Rd2 {[%emt 0:02:32]} Qc4 {[%emt 0:00:35]} 45. Qxh6 {[%emt 0:01:31]} Qc1 {[%emt 0:00:05]} 46. Qe3 {[%emt 0:00:22]} Qh1 {[%emt 0:00:54]} 47. Qg5 {[%emt 0:02:13]} Rh8 {[%emt 0:00:02]} 48. Rc2 {[%emt 0:00:54]} Qxh5 {[%emt 0:00:42]} 49. Qxh5 {[%emt 0:00:32]} Rxh5 {[%emt 0:00:01]} 50. Rc7 {[%emt 0:00:08]} Rh7 {[%emt 0:00:57]} 51. Ke3 {[%emt 0:00:27]} Rg7 {[%emt 0:00:23]} 52. b4 {[%emt 0:01:36]} Kb8 {[%emt 0:00:13]} 53. Re7 {[%emt 0:00:06]} a6 {[%emt 0:00:18]} 54. g3 {[%emt 0:00:11]} Ka8 {[%emt 0:00:14]} 55. Kf4 {[%emt 0:00:08]} Kb8 {[%emt 0:00:41]} 56. g4 {[%emt 0:00:06]} fxg4 {[%emt 0:00:13]} 57. fxg4 {[%emt 0:00:05]} Ka8 {[%emt 0:00:15]} 58. g5 {[%emt 0:00:07]} Kb8 {[%emt 0:00:17]} 59. g6 {[%emt 0:02:01]} Rxg6 {[%emt 0:00:12]} 60. Rxf7 {[%emt 0:00:12]} Rg1 {[%emt 0:00:57]} 61. Rf6 {[%emt 0:00:32]} Re1 {[%emt 0:01:14]} 62. Rxe6 {[%emt 0:01:03]} Re4+ {[%emt 0:00:01]} 63. Kf5 {[%emt 0:00:08]} Rxd4 {[%emt 0:00:09]} 64. Rxa6 {[%emt 0:00:15]} Rxb4 {[%emt 0:00:15]} 65. Rd6 {[%emt 0:01:08]} d4 {[%emt 0:00:46]} 66. e6 {[%emt 0:00:20]} Kc7 {[%emt 0:00:58]} 67. e7 {[%emt 0:00:45]} Kxd6 {[%emt 0:01:05]} 68. e8=Q {[%emt 0:00:07]} Kd5 {[%emt 0:01:09]} 69. Qe6+ {[%emt 0:00:29]} Kc5 {[%emt 0:00:02]} 70. Ke4 {[%emt 0:00:20]} Kb5 {[%emt 0:00:31]} 71. Kd5 {[%emt 0:00:26]} Ka4 {[%emt 0:00:33]} 72. Qa6+ {[%emt 0:00:29]} Kb3 {[%emt 0:00:11]} 73. Qd3+ {[%emt 0:00:15]} Kb2 {[%emt 0:01:12]} 74. Kc5 {[%emt 0:00:18]} 1-0